fUSD/lending_fUSD_20241223
["ID","MTS","AMOUNT","RATE_DAILY","PERIOD"]
[346440998,1734977461123,-1488.34,0.00017822,2]
[346440999,1734977461132,-712.1,0.00017822,2]
[346441000,1734977461142,-500.0,0.00017822,2]
[346441001,1734977461153,-1531.6,0.00017822,2]
[346441002,1734977461163,-1333.6,0.00017822,2]
[346441003,1734977461172,-500.0,0.00017822,2]
[346441004,1734977461182,-500.0,0.00017822,2]
[346441005,1734977461192,-1975.23,0.00017822,2]
[346441006,1734977461201,-500.0,0.00017822,2]
[346441007,1734977461210,-500.0,0.00017822,2]
[346441008,1734977461219,-500.0,0.00017822,2]
[346441009,1734977461229,-533.17,0.00017822,2]
[346441010,1734977461238,-500.0,0.00017822,2]
[346441011,1734977461248,-500.0,0.00017822,2]
[346441012,1734977461257,-1065.08,0.00017822,2]
[346441013,1734977461266,-500.0,0.00017822,2]
[346441014,1734977461275,-778.09,0.00017822,2]
[346441015,1734977461284,-1710.15,0.00017822,2]
[346441016,1734977461294,-527.63,0.00017822,2]
[346441017,1734977461303,-500.0,0.00017822,2]
[346441018,1734977461313,-1057.48,0.00017822,2]
[346441019,1734977461322,-500.0,0.00017822,2]
[346441020,1734977461331,-731.82,0.00017822,2]
[346441021,1734977461340,-500.0,0.00017822,2]
[346441022,1734977461350,-1922.96,0.00017822,2]
[346441023,1734977461359,-500.0,0.00017822,2]
[346441024,1734977461368,-500.0,0.00017822,2]
[346441025,1734977461378,-602.65,0.00017822,2]
[346441026,1734977461387,-1442.04,0.00017831,2]
[346441027,1734977461396,-150.0,0.00017869,2]
[346441028,1734977461411,-501.08097073,0.00017873,2]
[346441029,1734977461420,-500.0,0.00017873,2]
[346441030,1734977461430,-514.00667512,0.00017873,2]
[346441031,1734977461439,-160.1124278,0.00017873,2]
[346441032,1734977461449,-5556.72937356,0.00017885,2]
[346441033,1734977461458,-3912.0,0.000179,2]
[346441034,1734977461471,-153.61,0.000179,2]
[346441035,1734977461480,-153.61,0.000179,2]
[346441036,1734977461490,-13728.98,0.00017902,2]
[346441037,1734977461500,-1527.72,0.00017902,2]
[346441038,1734977461510,-500.0,0.00017902,2]
[346441039,1734977461520,-4710.0,0.00017902,2]
[346441040,1734977461530,-7787.01,0.00017902,2]
[346441041,1734977461541,-11822.31,0.00017902,2]
[346441042,1734977461550,-5028.87,0.00017902,2]
[346441043,1734977461559,-1366.87,0.00017902,2]
[346441044,1734977461568,-4241.28,0.00017902,2]
[346441045,1734977461578,-10756.14,0.00017902,2]
[346441046,1734977461587,-9519.25,0.00017902,2]
[346441047,1734977461597,-9267.8186321,0.00017902,2]
[346441048,1734977462212,-387.05196557,0.00017902,2]
[346441049,1734977462239,-386.90940233,0.00017902,2]
[346441050,1734977462248,-80.14059767,0.00017902,2]
[346441051,1734977462259,-635.8152054,0.00017902,2]
[346441052,1734977462270,-463.4202856,0.00017902,2]
[346441053,1734977462281,-567.20344829,0.00017902,2]
[346441054,1734977462296,-843.15046304,0.00017902,2]
[346441055,1734977462306,-2842.49,0.00017902,2]
[346441056,1734977462315,-6305.06415101,0.00017902,2]
[346441057,1734977462327,-1662.67809716,0.00017902,2]
[346441058,1734977462775,-500.0,0.00017254,2]
[346441059,1734977462784,-676.16819092,0.00017354,2]
[346441060,1734977462795,-667.645,0.00017354,2]
[346441061,1734977462805,-543.77553958,0.00017354,2]
[346441062,1734977462831,-500.0,0.00017354,2]
[346441063,1734977462872,-495.8712695,0.00017354,2]
[346441064,1734977462881,-2883.46,0.00017628,2]
[346441065,1734977462890,-2767.20775183,0.00017902,2]
[346441066,1734977462900,-2918.22,0.00017902,2]
[346441067,1734977462910,-1137.2,0.00017902,2]
[346441068,1734977462919,-1939.55,0.00017902,2]
[346441069,1734977462928,-1549.17,0.00017902,2]
[346441070,1734977462937,-2613.36,0.00017902,2]
[346441071,1734977462946,-4120.86,0.00017902,2]
[346441072,1734977462955,-4034.11,0.00017902,2]
[346441073,1734977462965,-1116.79,0.00017902,2]
[346441074,1734977462974,-2883.46,0.00017902,2]
[346441075,1734977462983,-1681.25,0.00017903,2]
[346441076,1734977462992,-2582.69,0.00017903,2]
[346441077,1734977463001,-1908.15,0.00017903,2]
[346441078,1734977463010,-500.0,0.00017903,2]
[346441079,1734977463020,-500.0,0.00017903,2]
[346441080,1734977463029,-500.0,0.00017903,2]
[346441081,1734977463039,-2509.44,0.00017903,2]
[346441082,1734977463048,-500.0,0.00017903,2]
[346441083,1734977463058,-798.72,0.00017903,2]
[346441084,1734977463067,-2542.39,0.00017903,2]
[346441085,1734977463077,-2833.56,0.00017903,2]
[346441086,1734977463087,-2333.1,0.00017903,2]
[346441087,1734977463096,-1958.84,0.00017903,2]
[346441088,1734977463106,-1607.75,0.00017903,2]
[346441089,1734977463116,-2045.66,0.00017903,2]
[346441090,1734977463125,-1604.12,0.00017903,2]
[346441091,1734977463143,-500.0,0.00017903,2]
[346441092,1734977463155,-2773.66,0.00017903,2]
[346441093,1734977463165,-500.0,0.00017903,2]
[346441094,1734977463175,-1343.4,0.00017903,2]
[346441095,1734977463184,-1931.96,0.00017903,2]
[346441096,1734977463194,-2725.12,0.00017903,2]
[346441097,1734977463304,-1168.23,0.00017903,2]
[346441098,1734977463315,-1476.6,0.00017903,2]
[346441099,1734977463325,-1341.63,0.00017903,2]
[346441100,1734977463335,-2082.28,0.00017903,2]
[346441101,1734977463344,-1542.31,0.00017903,2]
[346441102,1734977463354,-1295.48,0.00017903,2]
[346441103,1734977463363,-1238.39,0.00017903,2]
[346441104,1734977463372,-1567.96,0.00017903,2]
[346441105,1734977463381,-1328.88,0.00017903,2]
[346441106,1734977463390,-1281.64,0.00017903,2]
[346441107,1734977463399,-4567.11,0.00017903,2]
[346441108,1734977463411,-3112.05,0.00017903,2]
[346441109,1734977463421,-4706.29,0.00017903,2]
[346441110,1734977463430,-1043.29,0.00017903,2]
[346441111,1734977463439,-1593.79,0.00017903,2]
[346441112,1734977463448,-8427.63,0.00017903,2]
[346441113,1734977463458,-2118.0,0.00017903,2]
[346441114,1734977463471,-9267.46,0.00017903,2]
[346441115,1734977463480,-44369.85,0.00017903,2]
[346441116,1734977463490,-1282.1,0.00017903,2]
[346441117,1734977463499,-621.54,0.00017903,2]
[346441118,1734977463510,-5956.43,0.00017903,2]
[346441119,1734977463520,-3272.82,0.00017903,2]
[346441120,1734977463530,-3597.09,0.00017903,2]
[346441121,1734977463539,-1745.41,0.00017903,2]
[346441122,1734977463549,-526.94,0.00017903,2]
[346441123,1734977463558,-2518.23,0.00017903,2]
[346441124,1734977463568,-2278.59,0.00017903,2]
[346441125,1734977463578,-1863.78,0.00017903,2]
[346441126,1734977463588,-1551.7,0.00017903,2]
[346441127,1734977463597,-6248.1,0.00017903,2]
[346441128,1734977463606,-32149.57,0.00017903,2]
[346441129,1734977463616,-2026.04,0.00017903,2]
[346441130,1734977463625,-1695.9,0.00017903,2]
[346441131,1734977463635,-790.17,0.00017903,2]
[346441132,1734977463644,-4694.56,0.00017903,2]
[346441133,1734977463657,-1419.12,0.00017903,2]
[346441134,1734977463667,-2029.92,0.00017903,2]
[346441135,1734977463676,-4121.33,0.00017903,2]
[346441136,1734977463686,-1514.75,0.00017903,2]
[346441137,1734977463696,-3179.6,0.00017903,2]
[346441138,1734977463706,-500.0,0.00017903,2]
[346441139,1734977463716,-689.9,0.00017903,2]
[346441140,1734977463725,-5903.64,0.00017903,2]
[346441141,1734977463735,-617.83,0.00017903,2]
[346441142,1734977463744,-1119.03,0.00017903,2]
[346441143,1734977463753,-442.50007903,0.00017903,2]
[346441144,1734977463762,-3238.14,0.00017903,2]
[346441145,1734977463772,-565.57,0.00017903,2]
[346441146,1734977463782,-3938.7,0.00017903,2]
[346441147,1734977463792,-2399.52,0.00017903,2]
[346441148,1734977463803,-2876.98,0.00017903,2]
[346441149,1734977463813,-472.0,0.00017903,2]
[346441150,1734977463823,-1057.08,0.00017903,2]
[346441151,1734977463833,-7265.32,0.00017903,2]
[346441152,1734977463845,-2305.08,0.00017903,2]
[346441153,1734977463860,-4442.92,0.00017903,2]
[346441154,1734977463873,-3098.29,0.00017903,2]
[346441155,1734977463883,-2131.74,0.00017904,2]
[346441156,1734977463893,-639.04,0.00017904,2]
[346441157,1734977463905,-1241.7,0.00017904,2]
[346441158,1734977463915,-1126.17,0.00017904,2]
[346441159,1734977463926,-500.0,0.00017904,2]
[346441160,1734977463936,-1773.73,0.00017904,2]
[346441161,1734977463946,-1437.8,0.00017904,2]
[346441162,1734977463955,-1037.87,0.00017904,2]
[346441163,1734977463964,-500.0,0.00017904,2]
[346441164,1734977463974,-1688.18,0.00017904,2]
[346441165,1734977463983,-1671.15,0.00017904,2]
[346441166,1734977463993,-1160.28,0.00017904,2]
[346441167,1734977464002,-1353.56,0.00017904,2]
[346441168,1734977464012,-2839.59,0.00017904,2]
[346441169,1734977464021,-550.42,0.00017904,2]
[346441170,1734977464030,-845.26,0.00017904,2]
[346441171,1734977464040,-1777.47,0.00017904,2]
[346441172,1734977464049,-1529.16,0.00017904,2]
[346441173,1734977464059,-500.0,0.00017904,2]
[346441174,1734977464069,-500.0,0.00017904,2]
[346441175,1734977464078,-500.0,0.00017904,2]
[346441176,1734977464087,-1983.41,0.00017904,2]
[346441177,1734977464097,-624.69,0.00017904,2]
[346441178,1734977464107,-1572.78,0.00017904,2]
[346441179,1734977464117,-1708.96,0.00017904,2]
[346441180,1734977464127,-500.0,0.00017904,2]
[346441181,1734977464137,-2716.88,0.00017904,2]
[346441182,1734977464147,-1922.26,0.00017904,2]
[346441183,1734977464159,-1485.93,0.00017904,2]
[346441184,1734977464168,-1846.17,0.00017904,2]
[346441185,1734977464178,-770.49,0.00017904,2]
[346441186,1734977464188,-2824.81,0.00017904,2]
[346441187,1734977464198,-1613.12,0.00017904,2]
[346441188,1734977464208,-2143.02,0.00017904,2]
[346441189,1734977464218,-3134.48,0.00017904,2]
[346441190,1734977464228,-1281.42,0.00017904,2]
[346441191,1734977464237,-3470.65,0.00017904,2]
[346441192,1734977464247,-1461.67,0.00017904,2]
[346441193,1734977464256,-500.0,0.00017904,2]
[346441194,1734977464267,-2249.45,0.00017904,2]
[346441195,1734977464277,-2471.58,0.00017904,2]
[346441196,1734977464287,-68831.1473,0.00017904,2]
[346441197,1734977464296,-1265.0,0.00017916,2]
[346441198,1734977464306,-2011.0,0.00017916,2]
[346441199,1734977464316,-150.0,0.00017916,2]
[346441200,1734977464325,-565.0,0.00017916,2]
[346441201,1734977464335,-633.0,0.00017916,2]
[346441202,1734977464345,-1899.0,0.00017916,2]
[346441203,1734977464355,-1256.0,0.00017916,2]
[346441204,1734977464364,-924.0,0.00017916,2]
[346441205,1734977464373,-818.0,0.00017916,2]
[346441206,1734977464383,-3770.0,0.00017916,2]
[346441207,1734977464392,-536.0,0.00017916,2]
[346441208,1734977464404,-3682.0,0.00017916,2]
[346441209,1734977464414,-1442.04,0.00017919,2]
[346441210,1734977464424,-5556.72937356,0.00017976,2]
[346441211,1734977464433,-1442.04,0.00017999,2]
[346441212,1734977464443,-1442.04,0.00017999,2]
[346441213,1734977464453,-1442.04,0.00017999,2]
[346441214,1734977464463,-1442.04,0.00017999,2]
[346441215,1734977464477,-1442.04,0.00017999,2]
[346441216,1734977464487,-1442.04,0.00017999,2]
[346441217,1734977464497,-1442.04,0.00017999,2]
[346441218,1734977464507,-1442.04,0.00017999,2]
[346441219,1734977464517,-1442.04,0.00017999,2]
[346441220,1734977464526,-1442.04,0.00017999,2]
[346441221,1734977464535,-1442.04,0.00017999,2]
[346441222,1734977464545,-1442.04,0.00017999,2]
[346441223,1734977464555,-1442.04,0.00017999,2]
[346441224,1734977464564,-1442.04,0.00017999,2]
[346441225,1734977464574,-1442.04,0.00017999,2]
[346441226,1734977464584,-1442.04,0.00017999,2]
[346441227,1734977464593,-1442.07690251,0.00017999,2]
[346441228,1734977464603,-12360.99532106,0.00018,2]
[346441229,1734977464612,-500.0,0.00018004,2]
[346441230,1734977464622,-664.34,0.00018004,2]
[346441231,1734977464632,-1236.55,0.00018004,2]
[346441232,1734977464641,-500.0,0.00018004,2]
[346441233,1734977464653,-1042.03,0.00018004,2]
[346441234,1734977464662,-769.3,0.00018004,2]
[346441235,1734977464672,-500.0,0.00018004,2]
[346441236,1734977464681,-940.69,0.00018004,2]
[346441237,1734977464690,-500.0,0.00018004,2]
[346441238,1734977464699,-500.0,0.00018004,2]
[346441239,1734977464708,-500.0,0.00018004,2]
[346441240,1734977464717,-830.96,0.00018004,2]
[346441241,1734977464727,-1054.24,0.00018004,2]
[346441242,1734977464735,-500.0,0.00018004,2]
[346441243,1734977464744,-500.0,0.00018004,2]
[346441244,1734977464753,-850.34,0.00018004,2]
[346441245,1734977464762,-583.96,0.00018004,2]
[346441246,1734977464771,-500.0,0.00018004,2]
[346441247,1734977464780,-500.0,0.00018004,2]
[346441248,1734977464789,-594.4,0.00018004,2]
[346441249,1734977464799,-500.0,0.00018004,2]
[346441250,1734977464808,-500.0,0.00018004,2]
[346441251,1734977464817,-500.0,0.00018004,2]
[346441252,1734977464826,-500.0,0.00018004,2]
[346441253,1734977464835,-593.73,0.00018004,2]
[346441254,1734977464845,-569.52,0.00018004,2]
[346441255,1734977464854,-500.0,0.00018004,2]
[346441256,1734977464863,-755.57,0.00018004,2]
[346441257,1734977464873,-1538.07,0.00018004,2]
[346441258,1734977464882,-609.95,0.00018004,2]
[346441259,1734977464891,-500.0,0.00018004,2]
[346441260,1734977464903,-500.0,0.00018004,2]
[346441261,1734977464912,-637.39,0.00018004,2]
[346441262,1734977464922,-528.39,0.00018004,2]
[346441263,1734977464931,-538.7,0.00018004,2]
[346441264,1734977464940,-607.39,0.00018004,2]
[346441265,1734977464949,-513.43610081,0.00018004,2]
[346441266,1734977464958,-516.16,0.00018004,2]
[346441267,1734977464967,-500.0,0.00018004,2]
[346441268,1734977464976,-500.0,0.00018004,2]
[346441269,1734977464986,-537.06,0.00018004,2]
[346441270,1734977464995,-500.0,0.00018004,2]
[346441271,1734977465004,-511.46,0.00018004,2]
[346441272,1734977465013,-500.0,0.00018004,2]
[346441273,1734977465022,-929.41,0.00018004,2]
[346441274,1734977465031,-585.33,0.00018004,2]
[346441275,1734977465040,-1286.35,0.00018004,2]
[346441276,1734977465050,-372.9,0.00018004,2]
[346441277,1734977465059,-500.0,0.00018004,2]
[346441278,1734977465068,-1513.23,0.00018004,2]
[346441279,1734977465078,-500.0,0.00018004,2]
[346441280,1734977465087,-500.0,0.00018004,2]
[346441281,1734977465097,-500.0,0.00018004,2]
[346441282,1734977465106,-500.0,0.00018004,2]
[346441283,1734977465117,-1207.09,0.00018004,2]
[346441284,1734977465126,-500.0,0.00018004,2]
[346441285,1734977465136,-500.0,0.00018004,2]
[346441286,1734977465146,-1083.72,0.00018004,2]
[346441287,1734977465158,-500.0,0.00018004,2]
[346441288,1734977465168,-500.0,0.00018004,2]
[346441289,1734977465177,-500.0,0.00018004,2]
[346441290,1734977465186,-500.0,0.00018004,2]
[346441291,1734977465196,-500.0,0.00018004,2]
[346441292,1734977465205,-500.0,0.00018004,2]
[346441293,1734977465215,-1674.27,0.00018004,2]
[346441294,1734977465225,-501.14325651,0.00018004,2]
[346441295,1734977465235,-500.0,0.00018004,2]
[346441296,1734977465244,-500.0,0.00018004,2]
[346441297,1734977465254,-1269.58,0.00018004,2]
[346441298,1734977465263,-593.38,0.00018004,2]
[346441299,1734977465272,-1107.81,0.00018004,2]
[346441300,1734977465281,-500.0,0.00018004,2]
[346441301,1734977465290,-1014.9,0.00018004,2]
[346441302,1734977465300,-500.0,0.00018004,2]
[346441303,1734977465309,-500.0,0.00018004,2]
[346441304,1734977465318,-500.0,0.00018004,2]
[346441305,1734977465327,-500.0,0.00018004,2]
[346441306,1734977465336,-500.0,0.00018004,2]
[346441307,1734977465346,-548.22,0.00018004,2]
[346441308,1734977465355,-500.0,0.00018004,2]
[346441309,1734977465364,-500.0,0.00018004,2]
[346441310,1734977465373,-796.98,0.00018004,2]
[346441311,1734977465382,-500.0,0.00018004,2]
[346441312,1734977465391,-552.71,0.00018004,2]
[346441313,1734977465403,-500.0,0.00018004,2]
[346441314,1734977465412,-1761.4,0.00018004,2]
[346441315,1734977465421,-500.0,0.00018004,2]
[346441316,1734977465430,-1474.52,0.00018004,2]
[346441317,1734977465439,-298.34467172,0.00018004,2]
[346441318,1734977465448,-1350.5,0.00018004,2]
[346441319,1734977465457,-717.33,0.00018004,2]
[346441320,1734977465469,-500.0,0.00018004,2]
[346441321,1734977465478,-500.0,0.00018004,2]
[346441322,1734977465487,-500.0,0.00018004,2]
[346441323,1734977465497,-1199.65,0.00018004,2]
[346441324,1734977465508,-500.0,0.00018004,2]
[346441325,1734977465518,-500.0,0.00018004,2]
[346441326,1734977465527,-672.41,0.00018004,2]
[346441327,1734977465536,-500.0,0.00018004,2]
[346441328,1734977465547,-500.0,0.00018004,2]
[346441329,1734977465556,-700.0,0.00018004,2]
[346441330,1734977465566,-526.64,0.00018004,2]
[346441331,1734977465575,-1404.04,0.00018004,2]
[346441332,1734977465584,-1306.12,0.00018004,2]
[346441333,1734977465594,-1309.06,0.00018004,2]
[346441334,1734977465603,-501.18,0.00018004,2]
[346441335,1734977465613,-500.0,0.00018004,2]
[346441336,1734977465622,-500.0,0.00018004,2]
[346441337,1734977465631,-795.77,0.00018004,2]
[346441338,1734977465641,-1323.97,0.00018004,2]
[346441339,1734977465650,-500.0,0.00018004,2]
[346441340,1734977465660,-500.0,0.00018004,2]
[346441341,1734977465670,-500.0,0.00018004,2]
[346441342,1734977465679,-857.65,0.00018004,2]
[346441343,1734977465688,-1059.49,0.00018004,2]
[346441344,1734977465698,-872.17,0.00018004,2]
[346441345,1734977465707,-500.0,0.00018004,2]
[346441346,1734977465717,-500.0,0.00018004,2]
[346441347,1734977465726,-721.2,0.00018004,2]
[346441348,1734977465735,-987.94,0.00018004,2]
[346441349,1734977465746,-683.97,0.00018004,2]
[346441350,1734977465756,-500.0,0.00018004,2]
[346441351,1734977465765,-782.01,0.00018004,2]
[346441352,1734977465775,-500.0,0.00018004,2]
[346441353,1734977465785,-500.0,0.00018004,2]
[346441354,1734977465794,-500.0,0.00018004,2]
[346441355,1734977465804,-500.0,0.00018004,2]
[346441356,1734977465813,-1329.49,0.00018004,2]
[346441357,1734977465823,-689.2,0.00018004,2]
[346441358,1734977465832,-946.6,0.00018004,2]
[346441359,1734977465842,-618.32631814,0.00018004,2]
[346441360,1734977465851,-500.0,0.00018004,2]
[346441361,1734977465861,-500.0,0.00018004,2]
[346441362,1734977465870,-500.0,0.00018004,2]
[346441363,1734977465879,-500.0,0.00018004,2]
[346441364,1734977465889,-500.0,0.00018004,2]
[346441365,1734977465898,-500.0,0.00018004,2]
[346441366,1734977465913,-500.0,0.00018004,2]
[346441367,1734977465923,-1603.18,0.00018004,2]
[346441368,1734977465932,-538.38,0.00018004,2]
[346441369,1734977465942,-500.0,0.00018004,2]
[346441370,1734977465951,-500.0,0.00018004,2]
[346441371,1734977465961,-892.68,0.00018004,2]
[346441372,1734977465970,-502.65,0.00018004,2]
[346441373,1734977465979,-500.0,0.00018004,2]
[346441374,1734977465989,-593.84,0.00018004,2]
[346441375,1734977465999,-500.0,0.00018004,2]
[346441376,1734977466008,-500.0,0.00018004,2]
[346441377,1734977466018,-500.0,0.00018004,2]
[346441378,1734977466027,-908.28,0.00018004,2]
[346441379,1734977466037,-500.0,0.00018004,2]
[346441380,1734977466046,-772.04,0.00018004,2]
[346441381,1734977466055,-500.0,0.00018004,2]
[346441382,1734977466065,-500.0,0.00018004,2]
[346441383,1734977466074,-577.46,0.00018004,2]
[346441384,1734977466084,-500.0,0.00018004,2]
[346441385,1734977466093,-500.0,0.00018004,2]
[346441386,1734977466102,-500.0,0.00018004,2]
[346441387,1734977466112,-710.98,0.00018004,2]
[346441388,1734977466121,-500.0,0.00018004,2]
[346441389,1734977466131,-801.87,0.00018004,2]
[346441390,1734977466141,-565.11,0.00018004,2]
[346441391,1734977466150,-711.47,0.00018004,2]
[346441392,1734977466163,-500.0,0.00018004,2]
[346441393,1734977466172,-500.0,0.00018004,2]
[346441394,1734977466182,-500.0,0.00018004,2]
[346441395,1734977466191,-500.0,0.00018004,2]
[346441396,1734977466200,-576.69,0.00018004,2]
[346441397,1734977466210,-813.71,0.00018004,2]
[346441398,1734977466221,-500.0,0.00018004,2]
[346441399,1734977466231,-1093.06,0.00018004,2]
[346441400,1734977466240,-500.0,0.00018004,2]
[346441401,1734977466250,-632.0165639,0.00018004,2]
[346441402,1734977466259,-500.0,0.00018004,2]
[346441403,1734977466269,-1585.67,0.00018004,2]
[346441404,1734977466278,-277.03365356,0.00018004,2]
[346441405,1734977466288,-1531.6,0.00018004,2]
[346441406,1734977466297,-500.0,0.00018004,2]
[346441407,1734977466307,-557.44984731,0.00018004,2]
[346441408,1734977466318,-500.0,0.00018004,2]
[346441409,1734977466327,-500.0,0.00018004,2]
[346441410,1734977466337,-500.0,0.00018004,2]
[346441411,1734977466347,-817.38,0.00018004,2]
[346441412,1734977466356,-290.242012,0.00018004,2]
[346441413,1734977466366,-1263.55,0.00018004,2]
[346441414,1734977466376,-500.0,0.00018004,2]
[346441415,1734977466386,-500.0,0.00018004,2]
[346441416,1734977466395,-500.0,0.00018004,2]
[346441417,1734977466407,-500.0,0.00018004,2]
[346441418,1734977466417,-500.0,0.00018004,2]
[346441419,1734977466426,-500.0,0.00018004,2]
[346441420,1734977466436,-1292.29,0.00018004,2]
[346441421,1734977466446,-500.0,0.00018004,2]
[346441422,1734977466456,-500.0,0.00018004,2]
[346441423,1734977466466,-1088.72,0.00018004,2]
[346441424,1734977466478,-500.0,0.00018004,2]
[346441425,1734977466487,-1137.56,0.00018004,2]
[346441426,1734977466497,-500.0,0.00018004,2]
[346441427,1734977466507,-1097.86,0.00018004,2]
[346441428,1734977466517,-500.0,0.00018004,2]
[346441429,1734977466528,-1008.48,0.00018004,2]
[346441430,1734977466538,-504.09,0.00018004,2]
[346441431,1734977466549,-500.0,0.00018004,2]
[346441432,1734977466559,-577.33,0.00018004,2]
[346441433,1734977466568,-500.0,0.00018004,2]
[346441434,1734977466578,-9812.38619645,0.00018019,2]
[346441435,1734977466588,-163.09458202,0.00018019,2]
[346441436,1734977466598,-1500.0,0.00018041,2]
[346441437,1734977466607,-316.61,0.00018043,2]
[346441438,1734977466618,-1507.69,0.00018043,2]
[346441439,1734977466627,-150.0,0.00018043,2]
[346441440,1734977466637,-150.0,0.00018043,2]
[346441441,1734977466647,-1133.92990594,0.00018048,2]
[346441442,1734977466659,-1111.26990746,0.00018048,2]
[346441443,1734977466668,-150.0,0.00018074,2]
[346441444,1734977466678,-4221.5,0.00018075,2]
[346441445,1734977466687,-2962.35,0.00018075,2]
[346441446,1734977466698,-2479.46,0.00018075,2]
[346441447,1734977466707,-1312.14,0.00018075,2]
[346441448,1734977466716,-4948.18,0.00018075,2]
[346441449,1734977466726,-6291.6,0.00018075,2]
[346441450,1734977466736,-567.51,0.00018075,2]
[346441451,1734977466745,-1862.39,0.00018075,2]
[346441452,1734977466755,-8069.5,0.00018075,2]
[346441453,1734977466764,-25346.78,0.00018075,2]
[346441454,1734977466774,-3930.45,0.00018075,2]
[346441455,1734977466784,-6155.99,0.00018075,2]
[346441456,1734977466794,-4972.36,0.00018075,2]
[346441457,1734977466803,-9561.24,0.00018075,2]
[346441458,1734977466813,-7845.9,0.00018075,2]
[346441459,1734977466823,-5425.77,0.00018075,2]
[346441460,1734977466833,-3787.73,0.00018075,2]
[346441461,1734977466844,-1426.97,0.00018075,2]
[346441462,1734977466854,-8420.39,0.00018075,2]
[346441463,1734977466864,-3207.8,0.00018075,2]
[346441464,1734977466873,-24863.1,0.00018075,2]
[346441465,1734977466883,-2895.28,0.00018075,2]
[346441466,1734977466893,-500.0,0.00018075,2]
[346441467,1734977466905,-3164.39,0.00018075,2]
[346441468,1734977466915,-1104.36,0.00018075,2]
[346441469,1734977466924,-5915.52,0.00018075,2]
[346441470,1734977466934,-544.5,0.00018076,2]
[346441471,1734977466944,-1206.53,0.00018076,2]
[346441472,1734977466953,-500.0,0.00018076,2]
[346441473,1734977466963,-500.0,0.00018076,2]
[346441474,1734977466973,-500.0,0.00018076,2]
[346441475,1734977466983,-960.13,0.00018076,2]
[346441476,1734977466992,-500.0,0.00018076,2]
[346441477,1734977467002,-500.0,0.00018076,2]
[346441478,1734977467012,-550.31,0.00018076,2]
[346441479,1734977467021,-688.25,0.00018076,2]
[346441480,1734977467031,-516.32,0.00018076,2]
[346441481,1734977467041,-1344.26,0.00018076,2]
[346441482,1734977467050,-671.35,0.00018076,2]
[346441483,1734977467060,-916.0,0.00018076,2]
[346441484,1734977467069,-510.34,0.00018076,2]
[346441485,1734977467079,-500.0,0.00018076,2]
[346441486,1734977467089,-500.0,0.00018076,2]
[346441487,1734977467098,-500.0,0.00018076,2]
[346441488,1734977467107,-2081.19,0.00018076,2]
[346441489,1734977467117,-500.0,0.00018076,2]
[346441490,1734977467126,-500.0,0.00018076,2]
[346441491,1734977467136,-1124.19,0.00018076,2]
[346441492,1734977467145,-727.68,0.00018076,2]
[346441493,1734977467158,-1075.04,0.00018076,2]
[346441494,1734977467167,-279.08365606,0.00018076,2]
[346441495,1734977467177,-500.0,0.00018076,2]
[346441496,1734977467187,-693.52,0.00018076,2]
[346441497,1734977467197,-500.0,0.00018076,2]